bitfinex-derivatives/quotes_BTCF0:USTF0_20250510
["timestamp","ask_amount","ask_price","bid_price","bid_amount"]
[1746868824834,0.1896,103550.0,103540.0,0.73403619]
[1746868826024,0.1896,103550.0,103540.0,0.65673619]
[1746868826229,0.4582337,103550.0,103540.0,0.51171932]
[1746868826431,0.4582337,103550.0,103540.0,0.61621932]
[1746868826739,0.8190337,103550.0,103540.0,0.61621932]
[1746868829041,0.7435337,103550.0,103540.0,0.61621932]
[1746868831933,0.7435337,103550.0,103540.0,0.686781]
[1746868832640,0.7435337,103550.0,103540.0,0.61621932]
[1746868838941,0.5504,103550.0,103540.0,0.61621932]
[1746868839142,0.7435337,103550.0,103540.0,0.61621932]
[1746868839337,0.96303889,103550.0,103540.0,0.61621932]
[1746868839537,0.96303889,103550.0,103540.0,0.686781]
[1746868839737,0.76990519,103550.0,103540.0,0.686781]
[1746868839943,0.73250519,103550.0,103540.0,0.686781]
[1746868840248,0.92563889,103550.0,103540.0,0.686781]
[1746868840447,0.73250519,103550.0,103540.0,0.686781]
[1746868841840,0.73250519,103550.0,103540.0,0.696781]
[1746868842042,0.9031145,103550.0,103540.0,0.696781]
[1746868842843,0.7509145,103550.0,103540.0,0.62621932]
[1746868843038,0.9023545,103550.0,103540.0,0.696781]
[1746868843238,0.9023545,103550.0,103540.0,0.76734268]
[1746868843841,0.5415545,103550.0,103540.0,0.75734268]
[1746868844348,0.5415545,103550.0,103540.0,0.686781]
[1746868844947,0.5415545,103550.0,103540.0,0.696781]
[1746868845146,0.3901145,103550.0,103540.0,0.76734268]
[1746868845347,0.36564709,103550.0,103540.0,1.43471868]
[1746868845540,0.36564709,103550.0,103540.0,1.64814268]
[1746868845740,0.36564709,103550.0,103540.0,3.14814268]
[1746868846143,0.36564709,103550.0,103540.0,3.34129504]
[1746868847443,0.36564709,103550.0,103540.0,3.03129504]
[1746868847747,0.36564709,103550.0,103540.0,2.93471904]
[1746868848553,0.65274177,103560.0,103550.0,0.1931337]
[1746868848554,0.29756863,103560.0,103550.0,0.1931337]
[1746868848746,0.29756863,103560.0,103550.0,0.82702458]
[1746868848948,0.29756863,103560.0,103550.0,0.8127954]
[1746868849147,0.29756863,103560.0,103550.0,0.9787954]
[1746868849943,0.14624863,103560.0,103550.0,0.9797954]
[1746868850337,0.14624863,103560.0,103550.0,0.54843372]
[1746868850543,0.18484863,103560.0,103550.0,0.6189954]
[1746868851346,0.14624863,103560.0,103550.0,2.55035708]
[1746868851547,0.14624863,103560.0,103550.0,2.4797954]
[1746868851851,0.14624863,103560.0,103550.0,2.46923372]
[1746868852052,0.10660793,103560.0,103550.0,2.83035708]
[1746868852253,0.10660793,103560.0,103550.0,2.85636244]
[1746868852954,0.10660793,103560.0,103550.0,2.87121874]
[1746868855056,0.19862864,103570.0,103560.0,0.1931151]
[1746868855257,0.0378,103570.0,103560.0,0.88793848]
[1746868855754,0.51176,103580.0,103570.0,0.1930964]
[1746868856057,0.56116096,103580.0,103570.0,0.42685808]
[1746868856259,0.56116096,103580.0,103570.0,0.3562964]
[1746868856449,0.56116096,103580.0,103570.0,0.4688581]
[1746868856652,0.56116096,103580.0,103570.0,0.4678581]
[1746868857162,0.56116096,103580.0,103570.0,0.6338581]
[1746868857458,0.56116096,103580.0,103570.0,0.6318581]
[1746868858162,0.55556,103580.0,103570.0,0.6318581]
[1746868858362,0.4066,103580.0,103570.0,0.6318581]
[1746868858860,0.3668,103580.0,103570.0,0.6318581]
[1746868859057,0.3668,103580.0,103570.0,2.1318581]
[1746868860451,0.006,103580.0,103570.0,2.4926581]
[1746868860865,0.002,103580.0,103570.0,2.4936581]
[1746868862161,0.41152159,103590.0,103580.0,0.1930778]
[1746868862356,0.41152159,103590.0,103580.0,0.51840118]
[1746868862752,0.04884641,103590.0,103580.0,0.87920118]
[1746868863162,0.04884641,103590.0,103580.0,1.04520118]
[1746868863362,0.001,103590.0,103580.0,1.04520118]
[1746868863765,0.34478121,103600.0,103590.0,0.1920591]
[1746868863950,0.34478121,103600.0,103590.0,0.42146205]
[1746868864368,0.70558121,103600.0,103590.0,0.42146205]
[1746868864565,0.34478121,103600.0,103590.0,0.42146205]
[1746868865062,0.34978121,103600.0,103590.0,0.42146205]
[1746868865359,0.71058121,103600.0,103590.0,0.3140591]
[1746868865563,0.90362171,103600.0,103590.0,0.2394591]
[1746868865756,0.90362171,103600.0,103590.0,0.1920591]
[1746868865757,0.71058121,103600.0,103590.0,0.1920591]
[1746868865957,0.74998121,103600.0,103590.0,0.1920591]
[1746868866161,0.74998121,103600.0,103590.0,0.2294591]
[1746868866362,0.75958639,103600.0,103590.0,0.2294591]
[1746868867664,0.71073998,103600.0,103590.0,0.2294591]
[1746868872862,0.56001998,103600.0,103590.0,0.37886207]
[1746868873064,0.71037998,103600.0,103590.0,0.45556207]
[1746868873268,0.5112148,103600.0,103590.0,0.58956205]
[1746868873464,0.5112148,103600.0,103590.0,0.63156207]
[1746868873663,0.2618348,103600.0,103590.0,0.99236207]
[1746868875272,0.2618348,103600.0,103590.0,0.63156207]
[1746868875471,0.3002348,103600.0,103590.0,0.63156207]
[1746868875770,0.3385348,103600.0,103590.0,0.63156207]
[1746868878275,0.3385348,103600.0,103590.0,0.46556207]
[1746868878471,0.48447976,103600.0,103590.0,0.46556207]
[1746868878973,0.44617976,103600.0,103590.0,0.46556207]
[1746868879169,0.44617976,103600.0,103590.0,0.63156207]
[1746868879973,0.36837976,103600.0,103590.0,0.63156207]
[1746868880873,0.36837976,103600.0,103590.0,2.13156207]
[1746868881767,0.36837976,103600.0,103590.0,2.49236207]
[1746868881966,0.21805976,103600.0,103590.0,2.49236207]
[1746868882368,0.21805976,103600.0,103590.0,2.13156207]
[1746868882674,0.24272411,103600.0,103590.0,2.49236207]
[1746868882875,0.27922411,103600.0,103590.0,2.49236207]
[1746868883267,0.35482411,103600.0,103590.0,2.38495912]
[1746868884175,0.35482411,103600.0,103590.0,2.21895912]
[1746868884565,0.31752411,103600.0,103590.0,2.32636207]
[1746868885174,0.31752411,103600.0,103590.0,2.38495912]
[1746868886769,0.31752411,103600.0,103590.0,2.49236207]
[1746868887078,0.27922411,103600.0,103590.0,2.49236207]
[1746868887573,0.24272411,103600.0,103590.0,2.49236207]
[1746868888666,0.27872411,103600.0,103590.0,2.49236207]
[1746868889270,0.27872411,103600.0,103590.0,2.32636207]
[1746868890177,0.27872411,103600.0,103590.0,2.49236207]
[1746868890370,0.24272411,103600.0,103590.0,2.49236207]
[1746868893780,0.0721148,103600.0,103590.0,2.49236207]
[1746868895978,0.0721148,103600.0,103590.0,2.38495912]
[1746868896170,0.1118148,103600.0,103590.0,2.13156207]
[1746868897676,0.1118148,103600.0,103590.0,2.09463841]
[1746868899769,0.1118148,103600.0,103590.0,2.13155643]
[1746868900577,0.0721148,103600.0,103590.0,2.13155643]
[1746868901083,0.0721148,103600.0,103590.0,2.49235643]
[1746868905485,0.1099148,103600.0,103590.0,2.38495912]
[1746868905686,0.1099148,103600.0,103590.0,2.49235643]
[1746868908489,0.0721148,103600.0,103590.0,2.49235643]
[1746868909185,0.24272411,103600.0,103590.0,2.64975374]
[1746868909574,0.24272411,103600.0,103590.0,2.59975374]
[1746868910487,0.24072411,103600.0,103590.0,2.60075374]
[1746868911180,0.23772411,103600.0,103590.0,2.60075374]
[1746868911379,0.23772411,103600.0,103590.0,2.60175374]
[1746868911974,0.21035261,103600.0,103590.0,2.60175374]
[1746868912188,0.04850201,103600.0,103590.0,3.07828349]
[1746868912389,1e-08,103600.0,103590.0,3.07828349]
[1746868912981,1e-08,103600.0,103590.0,2.98828349]
[1746868913176,0.00976454,103610.0,103600.0,0.1930405]
[1746868913388,0.00976454,103610.0,103600.0,0.89653783]
[1746868914181,1e-08,103610.0,103600.0,1.06253783]
[1746868914890,0.00100001,103610.0,103600.0,1.06253783]
[1746868916993,0.001,103610.0,103600.0,1.06253783]
[1746868919219,0.69911921,103610.0,103600.0,0.4788405]
[1746868919399,0.77541921,103610.0,103600.0,0.4390405]
[1746868919595,0.77541921,103610.0,103600.0,0.3959405]
[1746868919797,0.73851359,103610.0,103600.0,0.3959405]
[1746868920295,0.73851359,103610.0,103600.0,0.2299405]
[1746868921692,0.6680219,103610.0,103600.0,0.2299405]
[1746868923899,0.3987,103610.0,103600.0,0.35735264]
[1746868924087,0.0379,103610.0,103600.0,0.43215264]
[1746868924291,0.0379,103610.0,103600.0,0.59815264]
[1746868924699,0.3987,103610.0,103600.0,0.59815264]
[1746868925197,0.3987,103610.0,103600.0,1.00095266]
[1746868925198,0.001,103610.0,103600.0,1.00095266]
[1746868926305,0.0383,103610.0,103600.0,1.08095266]
[1746868926696,0.001,103610.0,103600.0,0.97354052]
[1746868926897,0.001,103610.0,103600.0,1.08095266]
[1746868928817,0.21161862,103620.0,103610.0,0.30043404]
[1746868929017,0.15344,103620.0,103610.0,0.80813406]
[1746868929211,0.19244,103620.0,103610.0,0.80813406]
[1746868929408,0.043,103620.0,103610.0,0.70072192]
[1746868929613,0.004,103620.0,103610.0,1.2255462]
[1746868929812,1e-07,103620.0,103610.0,1.01072192]
[1746868930019,1e-07,103620.0,103610.0,2.71464518]
[1746868930313,0.0020001,103620.0,103610.0,2.77323304]
[1746868930515,0.0020001,103620.0,103610.0,2.78413406]
[1746868930910,0.0020001,103620.0,103610.0,2.78513406]
[1746868931618,1e-07,103620.0,103610.0,2.78613406]
[1746868932019,1e-07,103620.0,103610.0,2.89709276]
[1746868932316,0.33833398,103630.0,103620.0,0.23500322]
[1746868932510,0.30917568,103630.0,103620.0,1.3730275]
[1746868932920,0.30917568,103630.0,103620.0,2.9695293]
[1746868933113,0.2872593,103630.0,103620.0,3.1355293]
[1746868933319,0.27866788,103630.0,103620.0,3.1355293]
[1746868933520,0.15590011,103630.0,103620.0,3.1452606]
[1746868933821,0.15590011,103630.0,103620.0,3.1482606]
[1746868934118,0.14632462,103630.0,103620.0,3.1415293]
[1746868936815,0.4431,103650.0,103640.0,0.192966]
[1746868937022,0.4431,103650.0,103640.0,0.31037814]
[1746868937325,0.4431,103650.0,103640.0,0.42427814]
[1746868937623,0.45268546,103650.0,103640.0,0.42427814]
[1746868937918,0.45368546,103650.0,103640.0,0.42427814]
[1746868938225,0.45468546,103650.0,103640.0,0.42427814]
[1746868938912,0.45468546,103650.0,103640.0,0.240066]
[1746868939321,0.45468546,103650.0,103640.0,0.34747814]
[1746868939521,0.45468546,103650.0,103640.0,0.38397814]
[1746868940523,0.45468546,103650.0,103640.0,0.276566]
[1746868940822,0.45468546,103650.0,103640.0,0.38397814]
[1746868942823,0.05508546,103650.0,103640.0,0.74477814]
[1746868943030,0.05508546,103650.0,103640.0,0.78677816]
[1746868943218,0.0455,103650.0,103640.0,0.95277816]
[1746868943413,0.0455,103650.0,103640.0,0.91077814]
[1746868943721,0.0455,103650.0,103640.0,0.95277816]
[1746868944913,0.006,103650.0,103640.0,0.95277816]
[1746868945128,0.006,103650.0,103640.0,2.34536602]
[1746868945428,0.006,103650.0,103640.0,2.45277816]
[1746868946522,0.006,103650.0,103640.0,2.34536602]
[1746868946721,0.006,103650.0,103640.0,2.45277816]
[1746868947222,0.006,103650.0,103640.0,2.28677816]
[1746868947422,0.006,103650.0,103640.0,2.5941903]
[1746868947721,0.006,103650.0,103640.0,2.3941903]
[1746868947927,0.006,103650.0,103640.0,2.28677816]
[1746868948719,0.005,103650.0,103640.0,2.28677816]
[1746868948918,0.005,103650.0,103640.0,2.6461903]
[1746868949227,0.005,103650.0,103640.0,2.8121903]
[1746868949919,0.005,103650.0,103640.0,2.70477816]
[1746868950120,0.004,103650.0,103640.0,2.70777816]
[1746868950521,0.004,103650.0,103640.0,2.65777816]
[1746868951127,0.004,103650.0,103640.0,2.55036602]
[1746868951324,0.3608,103670.0,103660.0,0.1929288]
[1746868951521,0.3608,103670.0,103660.0,0.33034094]
[1746868951722,0.6711006,103680.0,103670.0,0.1929101]
[1746868952026,0.6331006,103680.0,103670.0,0.41112224]
[1746868952723,0.6331006,103680.0,103670.0,0.41012224]
[1746868953329,0.6331006,103680.0,103670.0,0.3027101]
[1746868953527,0.6361006,103680.0,103670.0,0.40912224]
[1746868953830,0.6361006,103680.0,103670.0,0.2274101]
[1746868954020,0.6381006,103680.0,103670.0,0.2274101]
[1746868954219,0.8041006,103680.0,103670.0,0.2274101]
[1746868956122,0.6477105,103680.0,103670.0,0.2274101]
[1746868958133,0.8137105,103680.0,103670.0,0.33482224]
[1746868958630,0.8137105,103680.0,103670.0,0.2274101]
[1746868959130,0.6477105,103680.0,103670.0,0.2274101]
[1746868960834,0.81842255,103680.0,103670.0,0.2274101]
[1746868961331,0.81842255,103680.0,103670.0,0.2374101]
[1746868961634,0.81842255,103680.0,103670.0,0.2274101]
[1746868963633,0.1929101,103670.0,103660.0,1.8376043]
[1746868963829,0.89558224,103670.0,103660.0,0.33137332]
[1746868964133,0.9541701,103670.0,103660.0,0.33137332]
[1746868964334,0.9541701,103670.0,103660.0,0.36787332]
[1746868964734,0.9541701,103670.0,103660.0,0.40567332]
[1746868965136,0.7881701,103670.0,103660.0,0.44377332]
[1746868968936,0.7881701,103670.0,103650.0,0.0482362]
[1746868969140,0.89120094,103660.0,103650.0,0.1929358]
[1746868969531,0.92860094,103660.0,103650.0,0.1929358]
[1746868970139,1.09460094,103660.0,103650.0,0.1929358]
[1746868970341,0.9871888,103660.0,103650.0,0.1939358]
[1746868970739,0.9871888,103660.0,103650.0,0.2333358]
[1746868972043,0.9871888,103660.0,103650.0,0.2343358]
[1746868973745,1.09460094,103660.0,103650.0,0.2343358]
[1746868973944,0.9871888,103660.0,103650.0,0.2343358]
[1746868975143,0.8211888,103660.0,103650.0,0.2343358]
[1746868976232,0.9871888,103660.0,103650.0,0.2343358]
[1746868976543,0.9871888,103660.0,103650.0,0.2726358]
[1746868977148,0.8211888,103660.0,103650.0,0.2726358]
[1746868978847,0.4603888,103660.0,103650.0,0.2726358]
[1746868979036,1.1819888,103660.0,103650.0,0.2726358]
[1746868981138,1.1819888,103660.0,103650.0,0.3056358]
[1746868984742,1.28940094,103660.0,103650.0,0.2726358]
[1746868984946,0.1929474,103650.0,103640.0,0.2894347]
[1746868985155,0.91127954,103650.0,103640.0,0.3206347]
[1746868985347,0.8038674,103650.0,103640.0,0.3509347]
[1746868985649,0.8038674,103650.0,103640.0,0.3818347]
[1746868986548,0.8038674,103650.0,103640.0,0.3848347]
[1746868987156,0.8038674,103650.0,103640.0,0.3878347]
[1746868987352,0.8038674,103650.0,103640.0,0.42983472]
[1746868990353,0.3923,103650.0,103640.0,0.45826337]
[1746868990651,0.51516,103660.0,103650.0,0.1929474]
[1746868990852,0.3608,103660.0,103650.0,0.44860476]
[1746868991154,0.3608,103660.0,103650.0,0.50414742]
[1746868991448,0.3608,103660.0,103650.0,0.57457609]
[1746868991846,0.3608,103660.0,103650.0,0.61241899]
[1746868992749,0.3608,103660.0,103650.0,0.50514742]
[1746868992948,0.9959665,103670.0,103660.0,0.1929288]
[1746868993251,0.9959665,103670.0,103660.0,0.29692882]
[1746868993854,1.1905246,103670.0,103660.0,0.29692882]
[1746868994054,1.1915246,103670.0,103660.0,0.29692882]
[1746868995155,0.7128381,103670.0,103660.0,0.40620039]
[1746868995357,0.5553581,103670.0,103660.0,0.41620039]
[1746868995547,0.5553581,103670.0,103660.0,0.41598151]
[1746868996248,0.5553581,103670.0,103660.0,0.58198151]
[1746868997158,0.1945581,103670.0,103660.0,0.83550994]
[1746868997356,0.1945581,103670.0,103660.0,0.58198151]
[1746868997554,0.8523585,103680.0,103670.0,0.1929101]
[1746868997759,0.8523585,103680.0,103670.0,0.33201012]
[1746868998653,0.8041344,103680.0,103670.0,0.33201012]
[1746868999159,0.8051344,103680.0,103670.0,0.33201012]
[1746868999651,0.8061344,103680.0,103670.0,0.33201012]
[1746869000455,0.8051344,103680.0,103670.0,0.33301012]
[1746869000659,0.5640099,103680.0,103670.0,0.33301012]
[1746869001244,0.5312099,103680.0,103670.0,0.33301012]
[1746869001451,0.5312099,103680.0,103670.0,0.33401012]
[1746869001856,0.7241014,103680.0,103670.0,0.33401012]
[1746869002057,0.7549014,103680.0,103670.0,0.33401012]
[1746869002457,0.5322899,103680.0,103670.0,0.33401012]
[1746869003161,0.5322899,103680.0,103670.0,0.34401012]
[1746869003455,0.3744099,103680.0,103670.0,0.34401012]
[1746869003761,0.5323299,103680.0,103670.0,0.34401012]
[1746869003959,0.5323299,103680.0,103670.0,0.45128169]
[1746869005151,0.5323299,103680.0,103670.0,0.61728169]
[1746869006157,0.3744099,103680.0,103670.0,0.45128169]
[1746869006358,0.5322099,103680.0,103670.0,0.45128169]
[1746869007662,0.5322099,103680.0,103670.0,0.35881502]
[1746869007863,0.5322099,103680.0,103670.0,0.46608659]
[1746869008159,0.5322099,103680.0,103670.0,0.63208659]
[1746869009762,0.5322099,103680.0,103670.0,0.52481502]
[1746869010158,0.5646099,103680.0,103670.0,0.35881502]
[1746869011270,0.7575014,103680.0,103670.0,0.35881502]
[1746869011460,0.5646099,103680.0,103670.0,0.35881502]
[1746869011862,0.5646099,103680.0,103670.0,0.46608659]
[1746869012369,0.5646099,103680.0,103670.0,0.35881502]
[1746869013764,0.5646099,103680.0,103670.0,0.42919714]
[1746869013964,0.5646099,103680.0,103670.0,0.35881502]
[1746869014271,0.5646099,103680.0,103670.0,0.42919714]
[1746869014469,0.7575014,103680.0,103670.0,0.35881502]
[1746869014664,0.7902014,103680.0,103670.0,0.35881502]
[1746869014961,0.5973099,103680.0,103670.0,0.35881502]
[1746869016860,0.6303099,103680.0,103670.0,0.42919714]
[1746869017272,0.6303099,103680.0,103670.0,0.35881502]
[1746869018674,0.6303099,103680.0,103670.0,0.42919714]
[1746869019970,0.80098094,103680.0,103670.0,0.35881502]
[1746869020371,0.80098094,103680.0,103670.0,0.42919714]
[1746869021573,0.57748094,103680.0,103670.0,0.38719712]
[1746869021776,0.54508094,103680.0,103670.0,0.42919714]
[1746869022377,0.57598094,103680.0,103670.0,0.42919714]
[1746869023678,0.57598094,103680.0,103670.0,0.35881502]
[1746869024171,0.57598094,103680.0,103670.0,0.42919714]
[1746869024576,0.57598094,103680.0,103670.0,0.35881502]
[1746869024779,0.57598094,103680.0,103670.0,0.42919714]
[1746869025078,0.57598094,103680.0,103670.0,0.35881502]
[1746869025377,0.57598094,103680.0,103670.0,0.42919714]
[1746869025579,0.60668094,103680.0,103670.0,0.42919714]
[1746869026279,0.630568,103680.0,103670.0,0.42919714]
[1746869028077,0.630568,103680.0,103670.0,0.59519714]
[1746869029082,0.630568,103680.0,103670.0,0.42919714]
[1746869029684,0.630568,103680.0,103670.0,0.35881502]
[1746869029868,0.630568,103680.0,103670.0,0.34881502]
[1746869033288,0.662568,103680.0,103670.0,0.34881502]
[1746869033486,0.4680099,103680.0,103670.0,0.41919714]
[1746869033889,0.4680099,103680.0,103670.0,0.34881502]
[1746869034083,0.4680099,103680.0,103670.0,0.41919714]
[1746869043096,0.4053099,103680.0,103670.0,0.41919714]
[1746869044596,0.4053099,103680.0,103670.0,0.34881502]
[1746869044895,0.4053099,103680.0,103670.0,0.41919714]
[1746869045890,0.4669099,103680.0,103670.0,0.41919714]
[1746869046196,0.3744099,103680.0,103670.0,0.41919714]
[1746869047202,0.004,103680.0,103670.0,1.02637926]
[1746869047803,0.004,103680.0,103670.0,2.52637926]
[1746869048304,0.004,103680.0,103670.0,2.38561502]
[1746869048601,0.93721969,103700.0,103670.0,2.60169286]
[1746869048799,0.96721969,103700.0,103690.0,0.1928729]
[1746869049097,0.87561969,103700.0,103690.0,0.48125504]
[1746869049295,0.87561969,103700.0,103690.0,0.57685504]
[1746869049501,0.51481969,103700.0,103690.0,0.86727292]
[1746869049699,0.51781969,103700.0,103690.0,1.00803716]
[1746869049904,0.51781969,103700.0,103690.0,0.93765504]
[1746869050105,0.51981969,103700.0,103690.0,0.93765504]
[1746869050703,0.51681969,103700.0,103690.0,0.93865504]
[1746869051106,0.51681969,103700.0,103690.0,0.86827292]
[1746869051501,0.51681969,103700.0,103690.0,0.93865504]
[1746869051892,0.51681969,103700.0,103690.0,1.00903716]
[1746869052103,0.0731444,103700.0,103690.0,1.34547382]
[1746869052298,0.0454424,103700.0,103690.0,1.34647382]
[1746869052600,0.0097215,103700.0,103690.0,1.34647382]
[1746869052799,0.0097215,103700.0,103690.0,1.30214558]
[1746869053201,0.17500311,103710.0,103700.0,0.1928543]
[1746869053398,0.17500311,103710.0,103700.0,0.86081856]
[1746869053998,0.17500311,103710.0,103700.0,0.72005432]
[1746869054310,0.17500311,103710.0,103700.0,1.02681856]
[1746869054499,0.17600311,103710.0,103700.0,1.02681856]
[1746869054699,0.18560773,103710.0,103700.0,0.88605432]
[1746869055007,0.21820773,103710.0,103700.0,0.95643644]
[1746869055200,0.58000773,103710.0,103700.0,0.4832543]
[1746869055399,0.64370773,103710.0,103700.0,0.4832543]
[1746869055606,0.64370773,103710.0,103700.0,0.55363642]
[1746869055811,0.47270462,103710.0,103700.0,0.59043684]
[1746869056006,0.47270462,103710.0,103700.0,0.4532543]
[1746869056007,0.66554032,103710.0,103700.0,0.4532543]
[1746869056202,0.66554032,103710.0,103700.0,0.2546543]
[1746869056603,0.77272286,103710.0,103700.0,0.2231543]
[1746869057104,0.66554032,103710.0,103700.0,0.1928543]
[1746869057299,0.83154032,103710.0,103700.0,0.1928543]
[1746869057800,0.93872286,103710.0,103700.0,0.1928543]
[1746869058007,0.83154032,103710.0,103700.0,0.1928543]
[1746869058203,0.77272286,103710.0,103700.0,0.1928543]
[1746869058407,0.1928543,103700.0,103690.0,0.3204881]
[1746869058608,0.72583684,103700.0,103690.0,0.1928582]
[1746869058909,0.6186543,103700.0,103690.0,0.1928582]
[1746869059110,0.72583684,103700.0,103690.0,0.1928582]
[1746869059404,0.82227284,103700.0,103690.0,0.1928582]
[1746869059609,0.82227284,103700.0,103690.0,0.1938582]
[1746869059808,1.07227284,103700.0,103690.0,0.002]
[1746869060107,1.23827284,103700.0,103690.0,0.002]
[1746869060310,1.1310903,103700.0,103690.0,0.1948729]
[1746869060609,1.23827284,103700.0,103690.0,0.1948729]
[1746869061508,1.23927284,103700.0,103690.0,0.1938729]
[1746869062009,1.1320903,103700.0,103690.0,0.1938729]
[1746869062207,0.7856543,103700.0,103690.0,0.1938729]
[1746869062414,0.7856543,103700.0,103690.0,0.2892729]
[1746869062713,1.06415684,103700.0,103690.0,0.2565729]
[1746869062911,1.06415684,103700.0,103690.0,0.2255729]
[1746869063313,0.9569743,103700.0,103690.0,0.1928729]
[1746869063506,0.9559743,103700.0,103690.0,0.1938729]
[1746869063710,1.06315684,103700.0,103690.0,0.2265729]
[1746869064115,0.7899743,103700.0,103690.0,0.2265729]
[1746869064410,0.89715684,103700.0,103690.0,0.2265729]
[1746869064914,0.89615684,103700.0,103690.0,0.2275729]
[1746869065115,1.06215684,103700.0,103690.0,0.2275729]
[1746869065303,0.9549743,103700.0,103690.0,0.2275729]
[1746869065713,1.06215684,103700.0,103690.0,0.2275729]
[1746869066814,0.9549743,103700.0,103690.0,0.2275729]
[1746869067118,0.7889743,103700.0,103690.0,0.2275729]
[1746869067413,0.89615684,103700.0,103690.0,0.2275729]
[1746869068506,0.7889743,103700.0,103690.0,0.2275729]
[1746869068708,0.89615684,103700.0,103690.0,0.2587729]
[1746869069307,0.7889743,103700.0,103690.0,0.2587729]
[1746869070015,0.89615684,103700.0,103690.0,0.2587729]
[1746869072308,0.92865684,103700.0,103690.0,0.2587729]
[1746869072509,0.9912343,103700.0,103690.0,0.2587729]
[1746869072709,1.09841684,103700.0,103690.0,0.2587729]
[1746869073017,0.9912343,103700.0,103690.0,0.2587729]
[1746869073221,1.09841684,103700.0,103690.0,0.2587729]
[1746869073516,1.09841684,103700.0,103690.0,0.2897729]
[1746869074409,0.9912343,103700.0,103690.0,0.33177292]
[1746869074611,0.8209143,103700.0,103690.0,0.33177292]
[1746869078022,0.3928,103700.0,103690.0,0.33177292]
[1746869078320,0.3928,103700.0,103690.0,0.43895546]
[1746869078321,0.3608,103700.0,103690.0,0.43895546]
[1746869079223,0.3608,103700.0,103690.0,0.60495546]
[1746869079523,0.3608,103700.0,103690.0,0.49777292]
[1746869079822,0.3608,103700.0,103690.0,0.60495546]
[1746869080020,0.3608,103700.0,103690.0,0.49777292]
[1746869080414,0.3608,103700.0,103690.0,0.60495546]
[1746869081815,0.3608,103700.0,103690.0,0.49777292]
[1746869082222,0.3608,103700.0,103690.0,0.60495546]
[1746869083122,0.3608,103700.0,103690.0,0.49777292]
[1746869083321,0.3608,103700.0,103690.0,0.60495546]
[1746869085308,0.3608,103700.0,103690.0,0.49777292]
[1746869085726,1.01268236,103710.0,103700.0,0.1928543]
[1746869086019,0.85729012,103710.0,103700.0,0.33185432]
[1746869086217,1.1680832,103710.0,103690.0,0.2430822]
[1746869086425,0.75613684,103700.0,103690.0,0.0657]
[1746869086625,0.75613684,103700.0,103690.0,0.0326]
[1746869086816,0.6489543,103700.0,103690.0,0.2254729]
[1746869087123,0.92213684,103700.0,103690.0,0.2254729]
[1746869087313,0.92213684,103700.0,103690.0,0.2585729]
[1746869087515,0.92213684,103700.0,103690.0,0.2575729]
[1746869088022,0.8149543,103700.0,103690.0,0.2575729]
[1746869088224,0.92213684,103700.0,103690.0,0.2565729]
[1746869089819,0.92313684,103700.0,103690.0,0.2565729]
[1746869090219,0.92313684,103700.0,103690.0,0.0306]
[1746869090529,0.92413684,103700.0,103690.0,0.0306]
[1746869092518,0.1928729,103690.0,103680.0,0.3057982]
[1746869092733,0.90653544,103690.0,103680.0,0.2897915]
[1746869092921,0.7993529,103690.0,103680.0,0.2897915]
[1746869093124,0.90653544,103690.0,103680.0,0.2897915]
[1746869093422,0.90653544,103690.0,103680.0,0.33179152]
[1746869093616,0.7993529,103690.0,103680.0,0.0636]
[1746869093925,0.7993529,103690.0,103680.0,0.2574915]
[1746869094226,1.07253544,103690.0,103680.0,0.2574915]
[1746869094523,1.07253544,103690.0,103680.0,0.0646]
[1746869094717,1.07253544,103690.0,103680.0,0.0656]
[1746869095328,1.07253544,103690.0,103680.0,0.2584915]
[1746869095718,1.07253544,103690.0,103680.0,0.0656]
[1746869095926,1.07253544,103690.0,103680.0,0.2584915]
[1746869096426,1.07253544,103690.0,103680.0,0.0656]
[1746869096725,1.07253544,103690.0,103680.0,0.0342]
[1746869099527,0.9653529,103690.0,103680.0,0.0342]
[1746869099826,1.07253544,103690.0,103680.0,0.0342]
[1746869100026,1.07253544,103690.0,103680.0,0.0648]
[1746869101127,0.90653544,103690.0,103680.0,0.0648]
[1746869101328,0.7993529,103690.0,103680.0,0.2576915]
[1746869101531,0.90653544,103690.0,103680.0,0.0648]
[1746869102331,0.6507729,103690.0,103680.0,0.2892915]
[1746869102633,0.7650129,103690.0,103680.0,0.33129152]
[1746869104536,0.5853729,103690.0,103680.0,0.33129152]
[1746869104730,0.7645729,103690.0,103680.0,0.33129152]
[1746869105532,0.5536729,103690.0,103680.0,0.43847406]
[1746869105722,0.7326729,103690.0,103680.0,0.43847406]
[1746869105922,0.6815008,103700.0,103690.0,0.1928729]
[1746869106122,0.8296608,103700.0,103690.0,0.46457292]
[1746869106726,0.7330268,103700.0,103690.0,0.57175546]
[1746869106928,0.5536668,103700.0,103690.0,0.57175546]
[1746869107127,0.9108268,103700.0,103690.0,0.57175546]
[1746869107326,0.9118268,103700.0,103690.0,0.57175546]
[1746869107732,0.9118268,103700.0,103690.0,0.46457292]
[1746869107934,0.9125468,103700.0,103690.0,0.46457292]
[1746869108935,0.9115468,103700.0,103690.0,0.46557292]
[1746869109534,0.9115468,103700.0,103690.0,0.46381292]
[1746869109834,0.71868,103700.0,103690.0,0.46381292]
[1746869110033,0.9115343,103700.0,103690.0,0.46381292]
[1746869110234,0.71868,103700.0,103690.0,0.46381292]
[1746869110434,0.9105343,103700.0,103690.0,0.46481292]
[1746869111434,0.7313343,103700.0,103690.0,0.46481292]
[1746869111634,0.71776,103700.0,103690.0,0.46481292]
[1746869111931,0.9106143,103700.0,103690.0,0.46481292]
[1746869112429,0.35696,103700.0,103690.0,0.57199546]
[1746869112625,0.53848,103700.0,103690.0,0.57199546]
[1746869112826,0.71852,103700.0,103690.0,0.57199546]
[1746869113223,0.53848,103700.0,103690.0,0.57199546]
[1746869113928,0.3608,103700.0,103690.0,0.46481292]
[1746869114130,0.3608,103700.0,103690.0,0.57199546]
[1746869114338,1.02443652,103710.0,103700.0,0.1928543]
[1746869114538,1.02443652,103710.0,103700.0,0.33065432]
[1746869115038,0.79454372,103710.0,103700.0,0.33065432]
[1746869115337,0.97630372,103710.0,103700.0,0.49665432]
[1746869115537,0.97730372,103710.0,103700.0,0.49665432]
[1746869116038,0.92909472,103710.0,103700.0,0.49665432]
[1746869117045,0.73724462,103710.0,103700.0,0.49665432]
[1746869117525,0.93008032,103710.0,103700.0,0.49665432]
[1746869118739,0.99148032,103710.0,103700.0,0.49665432]
[1746869119140,0.99148032,103710.0,103700.0,0.33065432]
[1746869127352,1.02388032,103710.0,103700.0,0.33065432]
[1746869127541,1.13106286,103710.0,103700.0,0.33065432]
[1746869129351,0.1928729,103690.0,103680.0,0.2893244]
[1746869129651,1.02165544,103690.0,103680.0,0.39562442]
[1746869129947,1.08495544,103690.0,103680.0,0.39562442]
[1746869130250,1.08495544,103690.0,103680.0,0.29919152]
[1746869130747,1.08495544,103690.0,103680.0,0.30219152]
[1746869130943,1.11515544,103690.0,103680.0,0.33469152]